bitfinex-derivatives/quotes_BTCF0:USTF0_20210406
["timestamp","ask_amount","ask_price","bid_price","bid_amount"]
[1617710852517,0.5601649,58672.0,58667.0,0.42895655]
[1617710853222,0.5601649,58672.0,58667.0,0.37725655]
[1617710853820,0.56014948,58674.0,58667.0,0.37725655]
[1617710854220,0.56014948,58674.0,58668.0,0.0518]
[1617710854421,0.56015432,58676.0,58668.0,0.0518]
[1617710854619,0.56015432,58676.0,58669.0,0.27]
[1617710855319,0.56015432,58676.0,58675.0,0.10725655]
[1617710855721,0.56015432,58676.0,58675.0,0.37725655]
[1617710855923,0.86028266,58676.0,58675.0,0.37624995]
[1617710856824,0.91178266,58676.0,58675.0,0.27]
[1617710857027,4.97778266,58676.0,58675.0,0.27]
[1617710857223,5.97778266,58676.0,58675.0,0.27]
[1617710857522,5.97778266,58676.0,58668.0,0.0518]
[1617710857523,7.32661736,58676.0,58669.0,0.27]
[1617710857723,5.82661736,58676.0,58675.0,0.2636]
[1617710857924,5.82661736,58676.0,58669.0,0.27]
[1617710858123,1.35967596,58670.0,58669.0,0.27]
[1617710858323,1.35967596,58670.0,58668.0,0.0518]
[1617710858625,1.15967596,58670.0,58669.0,0.27]
[1617710858823,2.71949038,58670.0,58669.0,0.27]
[1617710859225,2.82674693,58670.0,58669.0,0.27]
[1617710859724,3.46662271,58670.0,58669.0,0.27]
[1617710859926,3.46662271,58670.0,58669.0,0.2661]
[1617710860125,3.46662271,58670.0,58669.0,0.2515]
[1617710860926,3.26662271,58670.0,58669.0,0.2515]
[1617710862126,3.26662271,58670.0,58669.0,0.1307]
[1617710862426,5.91992271,58670.0,58660.0,0.7032387]
[1617710862626,6.04130271,58670.0,58660.0,0.7032387]
[1617710862928,0.9967613,58669.0,58665.0,0.182]
[1617710863127,0.9967613,58669.0,58629.0,3.79236644]
[1617710863128,1.10020904,58661.0,58643.0,0.16]
[1617710863328,0.9967613,58660.0,58647.0,0.10725655]
[1617710863528,4.2374,58648.0,58647.0,0.10725655]
[1617710863830,4.38452,58648.0,58647.0,0.10265655]
[1617710864029,4.38452,58648.0,58647.0,0.32265655]
[1617710864030,6.87743769,58648.0,58647.0,0.32265655]
[1617710864629,6.87743769,58648.0,58647.0,0.37305655]
[1617710865330,6.98469424,58648.0,58647.0,0.37305655]
[1617710865629,6.98469424,58648.0,58647.0,0.35965655]
[1617710866130,6.78469424,58648.0,58647.0,0.35965655]
[1617710866333,7.34487005,58648.0,58647.0,0.3586495]
[1617710867032,6.78469424,58648.0,58647.0,0.3586495]
[1617710867230,6.98469424,58648.0,58647.0,0.3522495]
[1617710867530,6.98469424,58648.0,58647.0,0.3450495]
[1617710867930,7.54486779,58648.0,58647.0,0.3450495]
[1617710868132,7.34486779,58648.0,58647.0,0.3450495]
[1617710868331,6.34486779,58648.0,58647.0,0.3450495]
[1617710868531,7.34486779,58648.0,58647.0,0.3450495]
[1617710869233,6.78469424,58648.0,58647.0,0.22]
[1617710869434,7.34487272,58648.0,58647.0,0.22]
[1617710869632,7.34487272,58648.0,58642.0,0.05]
[1617710870033,6.78469424,58648.0,58647.0,0.22]
[1617710870233,6.78469424,58648.0,58647.0,0.0514]
[1617710870435,6.78469424,58648.0,58642.0,0.27]
[1617710870436,1.59939925,58643.0,58642.0,0.27]
[1617710870636,1.59939925,58643.0,58641.0,0.10725655]
[1617710871036,1.59939925,58643.0,58642.0,0.27]
[1617710871238,1.59941844,58642.0,58632.0,0.10725655]
[1617710871439,0.0511,58641.0,58632.0,0.10725655]
[1617710871737,1.26468122,58633.0,58632.0,0.10725655]
[1617710871937,2.21358122,58633.0,58632.0,0.10725655]
[1617710872141,2.21358122,58633.0,58632.0,0.37725655]
[1617710872639,1.36525173,58633.0,58632.0,0.37725655]
[1617710872840,2.36525173,58633.0,58632.0,0.37725655]
[1617710873340,2.47250828,58633.0,58632.0,0.37725655]
[1617710873840,2.9725131,58633.0,58632.0,0.37725655]
[1617710874541,2.9725131,58633.0,58632.0,0.27]
[1617710874742,6.7648131,58633.0,58632.0,0.27]
[1617710874942,6.7648131,58633.0,58606.0,0.27]
[1617710875344,7.32556934,58633.0,58620.0,0.10725655]
[1617710875745,0.50008258,58623.0,58620.0,0.10725655]
[1617710876045,0.55108258,58623.0,58621.0,0.27]
[1617710876245,0.50008258,58623.0,58621.0,0.27]
[1617710876448,1.75267284,58622.0,58621.0,0.27]
[1617710876845,1.60036319,58622.0,58621.0,0.27]
[1617710877245,1.70761974,58622.0,58621.0,0.27]
[1617710877645,1.85993139,58622.0,58621.0,0.27]
[1617710878146,1.85993139,58622.0,58621.0,0.3211]
[1617710878345,2.85993139,58622.0,58621.0,0.27]
[1617710878547,1.75965669,58622.0,58621.0,0.27]
[1617710878951,2.85994185,58622.0,58621.0,0.27]
[1617710882854,2.85994185,58622.0,58621.0,0.3209]
[1617710884559,2.85994185,58622.0,58621.0,0.27]
[1617710885458,2.85994185,58622.0,58621.0,0.3209]
[1617710885859,1.85994185,58622.0,58621.0,0.39158]
[1617710886460,0.81250274,58622.0,58621.0,0.39158]
[1617710886861,0.66019109,58622.0,58621.0,0.44208]
[1617710887461,0.30009595,58622.0,58621.0,0.44208]
[1617710888062,0.30009595,58622.0,58621.0,0.39158]
[1617710888863,0.6596146,58622.0,58621.0,0.27]
[1617710889062,0.6596146,58622.0,58621.0,0.3216]
[1617710889363,0.6596146,58622.0,58621.0,0.47187]
[1617710889763,0.6596146,58622.0,58621.0,0.42027]
[1617710890864,0.1623584,58625.0,58621.0,0.47107]
[1617710891066,2.9949,58632.0,58621.0,0.47107]
[1617710891364,2.9949,58632.0,58630.0,0.10725655]
[1617710891964,1.36239816,58631.0,58630.0,0.37725655]
[1617710892766,1.09845724,58631.0,58630.0,0.37725655]
[1617710893267,0.65909431,58631.0,58630.0,0.37725655]
[1617710893670,0.65909431,58631.0,58630.0,2.07725655]
[1617710894069,0.65909431,58631.0,58630.0,5.20315655]
[1617710894673,0.2995974,58631.0,58630.0,5.20315655]
[1617710896174,0.2995974,58631.0,58630.0,5.05505655]
[1617710896675,0.2995974,58631.0,58630.0,5.00315655]
[1617710896875,0.2995974,58631.0,58630.0,3.50315655]
[1617710897672,0.65907311,58631.0,58630.0,3.50315655]
[1617710899572,0.65907311,58631.0,58630.0,5.00315655]
[1617710899775,0.2995974,58631.0,58630.0,5.00315655]
[1617710903076,0.2995974,58631.0,58630.0,3.50315655]
[1617710903576,0.2995974,58631.0,58630.0,5.00315655]
[1617710903775,0.2995974,58631.0,58630.0,5.05505655]
[1617710904678,0.2995974,58631.0,58630.0,5.00315655]
[1617710907883,0.2995974,58631.0,58630.0,5.05465655]
[1617710908082,0.2995974,58631.0,58630.0,5.00315655]
[1617710908282,0.2995974,58631.0,58630.0,1.87725655]
[1617710909783,0.65957765,58631.0,58630.0,1.87725655]
[1617710910682,0.65957765,58631.0,58630.0,4.50125655]
[1617710911183,0.65957765,58631.0,58630.0,4.44985655]
[1617710913386,0.65957765,58631.0,58630.0,4.50055655]
[1617710913684,0.65957765,58631.0,58630.0,4.44985655]
[1617710914885,0.65957765,58631.0,58630.0,2.94985655]
[1617710915184,0.65957765,58631.0,58630.0,0.37725655]
[1617710917886,0.76396765,58631.0,58630.0,0.37725655]
[1617710918490,1.36751487,58631.0,58630.0,0.37725655]
[1617710919495,0.92709803,58631.0,58630.0,0.37725655]
[1617710919691,0.82270803,58631.0,58630.0,0.37725655]
[1617710920792,1.10101309,58631.0,58630.0,0.37725655]
[1617710927005,1.10101309,58631.0,58630.0,3.00795655]
[1617710928508,4.47751309,58631.0,58630.0,0.37725655]
[1617710928910,4.21276243,58631.0,58630.0,0.37725655]
[1617710929311,4.65431061,58631.0,58630.0,0.37725655]
[1617710929710,1.27781061,58631.0,58630.0,0.37725655]
[1617710930310,1.10112583,58631.0,58630.0,0.37725655]
[1617710932212,1.10112583,58631.0,58630.0,0.51720655]
[1617710932512,1.10112583,58631.0,58630.0,2.01720655]
[1617710932913,0.65957765,58631.0,58630.0,4.48700655]
[1617710933212,0.65957765,58631.0,58630.0,4.68700655]
[1617710933513,0.2863974,58631.0,58630.0,4.68700655]
[1617710933712,0.2824974,58631.0,58630.0,4.68700655]
[1617710933912,0.2536974,58631.0,58630.0,4.48700655]
[1617710934814,0.2536974,58631.0,58630.0,2.01720655]
[1617710937420,0.2536974,58631.0,58630.0,2.21720655]
[1617710937919,0.3609044,58635.0,58630.0,2.21720655]
[1617710938118,0.3609044,58635.0,58632.0,3.6017]
[1617710938321,0.36090221,58636.0,58633.0,1.7]
[1617710944531,0.44099231,58651.0,58645.0,1.0]
[1617710944928,0.44099231,58651.0,58646.0,0.27]
[1617710945528,0.44098842,58650.0,58646.0,0.27]
[1617710945727,0.44098842,58650.0,58649.0,0.10725655]
[1617710946027,0.44098214,58651.0,58649.0,0.10725655]
[1617710946229,0.44098214,58651.0,58649.0,0.37725655]
[1617710946429,0.44215235,58650.0,58649.0,0.37725655]
[1617710946828,0.44100635,58652.0,58649.0,0.37725655]
[1617710947030,0.44100635,58652.0,58649.0,0.42875655]
[1617710947530,0.44100506,58653.0,58649.0,0.42875655]
[1617710947929,0.50112845,58658.0,58649.0,0.42875655]
[1617710947930,0.11675199,58651.0,58649.0,0.42875655]
[1617710948329,0.11675304,58652.0,58649.0,0.42875655]
[1617710948830,0.44100655,58652.0,58649.0,0.42875655]
[1617710950431,0.44100655,58652.0,58649.0,1.51637273]
[1617710951333,0.44100655,58652.0,58650.0,0.0515]
[1617710951532,0.44100655,58652.0,58649.0,1.51637273]
[1617710951832,0.44100655,58652.0,58651.0,0.27]
[1617710952033,0.35807739,58660.0,58650.0,0.47]
[1617710952034,0.44102575,58655.0,58650.0,0.47]
[1617710952233,0.44102575,58655.0,58650.0,0.27]
[1617710952434,2.9453,58651.0,58650.0,0.27]
[1617710952633,3.9453,58651.0,58650.0,0.27]
[1617710952834,4.38635663,58651.0,58650.0,0.27]
[1617710953234,5.25204147,58651.0,58650.0,0.27]
[1617710953735,5.63334146,58651.0,58650.0,0.27]
[1617710954135,5.25204147,58651.0,58650.0,0.3213]
[1617710954336,5.25204147,58651.0,58650.0,0.27]
[1617710954537,5.63335016,58651.0,58650.0,0.27]
[1617710955238,4.63335016,58651.0,58650.0,0.27]
[1617710955438,2.68805016,58651.0,58650.0,0.27]
[1617710955638,1.68805016,58651.0,58650.0,3.31]
[1617710955838,1.06330405,58651.0,58650.0,3.31]
[1617710956338,1.06330405,58651.0,58650.0,3.3608]
[1617710957441,1.06330405,58651.0,58650.0,3.31]
[1617710957650,2.06330405,58651.0,58650.0,0.27]
[1617710958040,2.68849429,58651.0,58650.0,0.27]
[1617710959642,2.68849429,58651.0,58650.0,0.0515]
[1617710960342,2.68849429,58651.0,58650.0,0.3215]
[1617710960942,3.25019981,58651.0,58650.0,0.3215]
[1617710961142,3.25019981,58651.0,58650.0,0.27]
[1617710961543,3.25019981,58651.0,58644.0,0.27]
[1617710962044,0.10725655,58645.0,58644.0,0.27]
[1617710962243,1.0501616,58645.0,58644.0,0.27]
[1617710963243,1.1715463,58645.0,58644.0,0.27]
[1617710963743,2.1715463,58645.0,58644.0,0.27]
[1617710964447,2.47250937,58645.0,58644.0,0.3208]
[1617710964654,2.57484937,58645.0,58644.0,0.3208]
[1617710964945,2.57484937,58645.0,58644.0,0.27]
[1617710966345,2.57484937,58645.0,58644.0,0.3204]
[1617710966546,2.47250937,58645.0,58644.0,0.27]
[1617710966947,2.83364681,58645.0,58644.0,0.27]
[1617710967548,2.83364681,58645.0,58644.0,0.321]
[1617710967749,2.88464681,58645.0,58644.0,0.321]
[1617710968348,2.88464681,58645.0,58644.0,0.27]
[1617710968549,2.88464681,58645.0,58644.0,2.9073]
[1617710969549,2.83364681,58645.0,58644.0,2.9073]
[1617710972453,2.88514681,58645.0,58644.0,2.9073]
[1617710972954,2.83364681,58645.0,58644.0,2.9073]
[1617710976860,2.83364681,58645.0,58644.0,0.27]
[1617710977061,5.51394681,58645.0,58644.0,0.27]
[1617710977462,5.75951627,58645.0,58644.0,0.27]
[1617710977962,3.07921627,58645.0,58644.0,0.27]
[1617710979064,2.83364681,58645.0,58644.0,0.27]
[1617710982266,1.83364681,58645.0,58644.0,0.27]
[1617710985871,2.83364681,58645.0,58644.0,0.27]
[1617710986472,1.83364681,58645.0,58644.0,0.27]
[1617710987672,1.10725655,58645.0,58644.0,0.27]
[1617710987872,0.10725655,58645.0,58644.0,0.27]
[1617710988072,1.60634256,58645.0,58644.0,0.42304]
[1617710988575,1.1043856,58645.0,58644.0,3.84894]
[1617710988974,0.36143711,58645.0,58644.0,4.04894]
[1617710989873,0.36137563,58647.0,58644.0,4.33906968]
[1617710990382,0.36137563,58647.0,58646.0,0.49007751]
[1617710990772,0.30115709,58647.0,58646.0,0.76007751]
[1617710992176,0.36133904,58651.0,58646.0,1.10796006]
[1617710992676,0.36133844,58652.0,58650.0,0.28997509]
[1617710993077,0.36077946,58655.0,58651.0,0.27]
[1617710993477,1.0,58668.0,58649.0,0.2]
[1617710993478,0.36061346,58656.0,58650.0,0.27]
[1617710993878,0.36061346,58656.0,58652.0,0.27]
[1617710994077,0.36061346,58656.0,58655.0,0.10725655]
[1617710994477,0.36061346,58656.0,58655.0,0.37725655]
[1617710996680,0.36060466,58657.0,58655.0,0.57725655]
[1617710997580,0.36060476,58659.0,58655.0,0.57725655]
[1617710998381,0.36059609,58660.0,58655.0,0.57725655]
[1617710998982,0.36059573,58659.0,58655.0,0.57725655]
[1617710999380,0.47587956,58659.0,58655.0,0.57725655]
[1617710999679,0.47587956,58659.0,58655.0,0.37725655]
[1617710999980,0.36059884,58660.0,58655.0,0.37725655]
[1617711000183,0.30052984,58656.0,58655.0,0.37725655]
[1617711000581,0.66114277,58656.0,58655.0,0.37725655]
[1617711003485,0.30052984,58656.0,58655.0,0.37725655]
[1617711004986,0.30052984,58656.0,58655.0,3.01015655]
[1617711005685,0.30052984,58656.0,58655.0,3.15535655]
[1617711006892,0.30017222,58657.0,58655.0,3.15535655]
[1617711007289,0.30016936,58658.0,58655.0,3.15535655]
[1617711007791,0.30016835,58659.0,58655.0,3.15535655]
[1617711008090,0.30016285,58658.0,58655.0,3.15535655]
[1617711008590,0.30016527,58659.0,58655.0,3.15535655]
[1617711009993,0.30014964,58660.0,58655.0,3.15535655]
[1617711010993,0.36016086,58664.0,58655.0,3.15535655]
[1617711011492,0.35997292,58665.0,58655.0,3.15535655]
[1617711012192,0.43994522,58669.0,58664.0,0.10725655]
[1617711012593,0.43994522,58669.0,58665.0,0.27]
[1617711013193,0.35997386,58666.0,58665.0,0.27]
[1617711018798,0.35982552,58667.0,58665.0,0.27]
[1617711021099,0.3598469,58668.0,58665.0,0.27]
[1617711022000,0.359846,58669.0,58665.0,0.27]
[1617711027304,0.43977887,58674.0,58668.0,3.49181]
[1617711027503,0.3598314,58672.0,58669.0,0.27]
[1617711027704,0.43977172,58677.0,58669.0,1.77]
[1617711027905,0.3597858,58673.0,58669.0,1.77]
[1617711028104,0.3597858,58673.0,58669.0,2.77]
[1617711028303,0.3597858,58673.0,58672.0,0.10725655]
[1617711028505,1.0,58699.0,58672.0,1.60725655]
[1617711028506,0.35977089,58680.0,58672.0,1.60725655]
[1617711028705,0.35977089,58680.0,58673.0,0.47]
[1617711028905,0.35975586,58683.0,58673.0,0.47]
[1617711029808,1.0,58699.0,58673.0,0.47]
[1617711029809,0.36006553,58682.0,58673.0,0.47]
[1617711030507,0.36006553,58682.0,58681.0,0.21391655]
[1617711030707,0.36006553,58682.0,58681.0,0.48391655]
[1617711034012,0.35960567,58684.0,58681.0,0.48391655]
[1617711034920,0.35960554,58685.0,58681.0,0.48391655]
[1617711038016,0.0516,58684.0,58681.0,0.48391655]
[1617711038216,0.35960554,58685.0,58682.0,0.2]
[1617711038620,0.35959793,58686.0,58684.0,0.2]
[1617711039419,0.35959637,58687.0,58685.0,0.27]
[1617711039619,0.0516,58686.0,58685.0,0.47]
[1617711039920,0.35959637,58687.0,58685.0,0.47]
[1617711040123,0.35959637,58687.0,58685.0,0.2]
[1617711040323,0.35959637,58687.0,58682.0,0.27]
[1617711040522,0.35959637,58687.0,58686.0,0.27]
[1617711040721,0.35959637,58687.0,58682.0,0.27]
[1617711040922,0.35960021,58686.0,58682.0,0.27]
[1617711041221,0.09307083,58686.0,58681.0,0.10725655]
[1617711041422,0.09307083,58686.0,58683.0,0.27]
[1617711041621,0.43948332,58691.0,58682.0,0.27]
[1617711041622,0.44089,58685.0,58682.0,0.27]
[1617711041921,0.44089,58685.0,58684.0,0.27]
[1617711042323,0.44089,58685.0,58682.0,0.27]
[1617711042522,0.80163657,58685.0,58682.0,0.27]
[1617711042725,0.80163657,58685.0,58684.0,0.41731]
[1617711042924,0.44089,58685.0,58684.0,0.14731]
[1617711043325,0.80163639,58685.0,58684.0,0.41731]
[1617711043726,0.36074639,58685.0,58684.0,0.41731]
[1617711044827,0.36074639,58685.0,58684.0,0.27]
[1617711045229,0.36074639,58685.0,58682.0,0.27]
[1617711045428,0.36074639,58685.0,58684.0,0.27]
[1617711045829,0.8012399,58685.0,58682.0,0.27]
[1617711046129,0.8012399,58685.0,58684.0,0.27]
[1617711046330,0.10220191,58685.0,58682.0,0.27]
[1617711046529,1.0,58683.0,58682.0,0.27]
[1617711046729,1.10220191,58685.0,58684.0,0.27]
[1617711046934,0.10220191,58685.0,58684.0,0.27]
[1617711047129,0.10220191,58685.0,58682.0,0.27]
[1617711047529,0.1143,58769.0,58682.0,0.27]
[1617711048128,0.80094551,58683.0,58682.0,0.27]
[1617711049330,0.90314191,58683.0,58682.0,0.27]
[1617711049732,0.80094551,58683.0,58682.0,0.27]
[1617711049930,1.94483551,58683.0,58682.0,0.27]
[1617711050631,2.04705147,58683.0,58682.0,0.27]
[1617711051032,2.54763167,58683.0,58682.0,0.27]
[1617711056440,2.59873167,58683.0,58682.0,0.27]
[1617711056740,2.23829618,58683.0,58682.0,0.27]
[1617711056941,2.18719618,58683.0,58682.0,0.27]
[1617711057141,2.76246415,58683.0,58682.0,0.27]
[1617711057540,2.547931,58683.0,58682.0,0.27]
[1617711057942,2.18719618,58683.0,58682.0,0.27]
[1617711058140,2.54792928,58683.0,58682.0,0.27]
[1617711060446,2.59952928,58683.0,58682.0,0.27]
[1617711060844,1.59952928,58683.0,58682.0,0.27]
[1617711061044,2.59952928,58683.0,58682.0,0.27]
[1617711061345,1.79828616,58683.0,58682.0,0.27]
[1617711061645,2.81447012,58683.0,58682.0,0.27]
[1617711062045,2.59992589,58683.0,58682.0,0.27]
[1617711062347,2.54832589,58683.0,58682.0,0.27]
[1617711067556,6.07819831,58683.0,58682.0,0.27]
[1617711068257,6.65304478,58683.0,58682.0,0.27]
[1617711068456,3.68444478,58683.0,58682.0,0.27]
[1617711069157,3.10959831,58683.0,58682.0,0.27]
[1617711071066,3.30959831,58683.0,58682.0,0.27]
[1617711071961,6.57509831,58683.0,58682.0,0.27]
[1617711072361,7.15094204,58683.0,58682.0,0.27]
[1617711072561,3.68544204,58683.0,58682.0,0.27]
[1617711073262,3.10959831,58683.0,58682.0,0.26899307]
[1617711073563,3.33995318,58683.0,58682.0,0.26899307]
[1617711074063,3.10959831,58683.0,58682.0,0.26899307]
[1617711074463,2.10959831,58683.0,58682.0,0.26899307]
[1617711074763,3.10959831,58683.0,58682.0,0.26899307]
[1617711074964,5.93909831,58683.0,58682.0,0.26899307]
[1617711075364,6.16945928,58683.0,58682.0,0.26899307]
[1617711076766,6.538519,58683.0,58682.0,0.26899307]
[1617711076965,6.738519,58683.0,58682.0,0.26899307]
[1617711077166,6.538519,58683.0,58682.0,0.26899307]
[1617711078170,7.44020517,58683.0,58682.0,0.26899307]
[1617711079267,7.44020517,58683.0,58682.0,0.24509307]
[1617711079468,7.44020517,58683.0,58682.0,0.24149307]
[1617711080270,8.94020517,58683.0,58682.0,0.24149307]
[1617711081070,13.94020517,58683.0,58682.0,0.23829307]
[1617711081372,14.4609126,58683.0,58658.0,0.10725655]
[1617711082071,1.30330349,58659.0,58658.0,0.10725655]
[1617711082271,1.42488349,58659.0,58658.0,0.09635655]
[1617711082472,1.42488349,58659.0,58658.0,0.29685655]
[1617711082672,4.11404004,58659.0,58658.0,0.28445655]
[1617711082973,5.11404004,58659.0,58658.0,0.28445655]
[1617711083273,6.96910659,58659.0,58658.0,0.27]
[1617711083476,7.16910659,58659.0,58658.0,0.27]
[1617711083672,6.96910659,58659.0,58641.0,0.27]
[1617711083874,6.96910659,58659.0,58630.0,0.42908666]
[1617711083875,7.6510052,58659.0,58639.0,0.27]
[1617711084274,0.66159337,58642.0,58637.0,0.29264839]
[1617711084475,0.82254337,58642.0,58638.0,0.27]
[1617711084677,0.16095,58642.0,58639.0,0.10725655]
[1617711085078,0.16095,58642.0,58640.0,0.27]
[1617711085679,1.0,58641.0,58640.0,0.27]
[1617711086680,1.10725655,58641.0,58640.0,0.27]
[1617711090182,1.22453655,58641.0,58640.0,0.27]
[1617711090683,4.66983655,58641.0,58640.0,0.27]
[1617711092682,4.96972796,58641.0,58640.0,0.27]
[1617711093686,4.66983655,58641.0,58640.0,0.27]
[1617711093884,4.66823655,58641.0,58640.0,0.27]
[1617711094084,4.96808377,58641.0,58640.0,0.27]
[1617711094785,5.37870375,58641.0,58640.0,0.27]
[1617711094984,5.32790375,58641.0,58640.0,0.27]
[1617711095587,4.96808377,58641.0,58640.0,0.27]
[1617711099988,5.32750639,58641.0,58640.0,0.27]
[1617711101889,5.37930639,58641.0,58640.0,0.27]
[1617711102089,5.32750639,58641.0,58640.0,0.27]
[1617711103091,5.32750639,58641.0,58629.0,0.10725655]
[1617711103391,5.32750639,58641.0,58630.0,0.27]
[1617711103592,0.29954137,58634.0,58629.0,0.10725655]
[1617711103993,0.29954137,58634.0,58630.0,0.27]
[1617711104793,0.30016287,58631.0,58630.0,0.27]
[1617711105092,1.40741942,58631.0,58630.0,0.27]
[1617711105796,1.90795151,58631.0,58630.0,0.27]
[1617711107295,1.40741942,58631.0,58630.0,0.27]
[1617711108897,1.76725207,58631.0,58630.0,0.27]
[1617711109797,4.72255207,58631.0,58630.0,0.27]
[1617711110897,6.22255207,58631.0,58612.0,0.27]
[1617711111099,6.22255207,58631.0,58602.0,0.53483604]
[1617711111100,3.59979924,58631.0,58616.0,0.10725655]
[1617711111498,3.59979924,58631.0,58617.0,0.27]
[1617711111699,3.05560562,58618.0,58617.0,0.27]
[1617711111901,3.17642562,58618.0,58617.0,0.27]
[1617711113099,4.28368217,58618.0,58617.0,0.27]
[1617711113498,4.28368217,58618.0,58610.0,0.10725655]
[1617711113698,4.28368217,58618.0,58611.0,0.27]
[1617711114098,1.0,58611.0,58610.0,0.10725655]
[1617711114500,1.0,58611.0,58610.0,0.37725655]
[1617711115100,1.10725655,58611.0,58610.0,0.37725655]
[1617711119608,1.10725655,58611.0,58610.0,0.52784655]
[1617711120008,0.10725655,58611.0,58610.0,0.52784655]
[1617711120208,1.10725655,58611.0,58610.0,0.52784655]
[1617711121209,0.10725655,58611.0,58610.0,0.52784655]
[1617711121809,0.29955552,58616.0,58610.0,0.52784655]
[1617711123112,0.29955806,58617.0,58615.0,2.5021]
[1617711123310,0.29955806,58617.0,58616.0,0.2]
[1617711123610,0.10725655,58623.0,58616.0,0.47]
[1617711123611,0.29954845,58619.0,58616.0,0.47]
[1617711123910,0.49918088,58632.0,58616.0,0.47]
[1617711123911,0.29953629,58621.0,58616.0,0.47]
[1617711124311,0.29952419,58623.0,58616.0,0.47]
[1617711125116,0.35012041,58624.0,58622.0,0.10725655]
[1617711125312,0.29952041,58624.0,58622.0,0.25796655]
[1617711125513,0.29951964,58627.0,58623.0,0.27]
[1617711127215,0.29952358,58626.0,58623.0,0.27]
[1617711127913,0.29968205,58625.0,58623.0,0.27]
[1617711128315,0.2996791,58626.0,58623.0,0.27]
[1617711128724,0.35959494,58629.0,58623.0,0.27]
[1617711128725,0.29967758,58627.0,58623.0,0.27]
[1617711130422,1.0,58625.0,58623.0,0.27]
[1617711130616,1.29968262,58625.0,58623.0,0.27]
[1617711131017,1.0,58625.0,58623.0,0.27]
[1617711131818,1.2996808,58625.0,58623.0,0.27]
[1617711132820,0.66109865,58624.0,58623.0,0.27]
[1617711134022,0.71229865,58624.0,58623.0,0.27]
[1617711134223,0.66109865,58624.0,58623.0,0.27]
[1617711136627,0.66109865,58624.0,58623.0,2.9972]
[1617711136926,0.30050849,58624.0,58623.0,2.9972]
[1617711137225,0.30043975,58625.0,58623.0,2.9972]
[1617711138026,0.30043975,58625.0,58623.0,0.27]
[1617711138233,0.30043858,58624.0,58623.0,0.27]
[1617711138527,0.44060405,58632.0,58623.0,0.27]
[1617711138528,0.30043873,58625.0,58623.0,0.27]
[1617711139027,0.30063984,58624.0,58623.0,0.27]
[1617711141630,0.66140488,58624.0,58623.0,0.27]
[1617711142030,0.30063984,58624.0,58623.0,0.27]
[1617711144634,0.66172546,58624.0,58623.0,0.27]
[1617711147936,0.66172546,58624.0,58623.0,0.41769]
[1617711149536,0.66172546,58624.0,58623.0,0.27]
[1617711151940,0.82651045,58624.0,58623.0,0.27]
[1617711153942,0.82651045,58624.0,58623.0,0.47]
[1617711154345,0.66172546,58624.0,58623.0,0.47]
[1617711154748,0.82873608,58624.0,58623.0,0.76384855]
[1617711155149,0.82873608,58624.0,58623.0,0.56384855]
[1617711155347,0.30063984,58624.0,58623.0,0.56384855]
[1617711155649,0.82923794,58624.0,58623.0,0.56384855]
[1617711156050,0.66212079,58624.0,58623.0,0.27]
[1617711156754,0.66212079,58624.0,58623.0,0.56412106]
[1617711163363,0.91847359,58624.0,58623.0,0.56412106]
[1617711163763,1.20169744,58624.0,58623.0,0.27]
[1617711164164,1.36041696,58624.0,58623.0,0.27]
[1617711167266,4.05121696,58624.0,58623.0,0.27]
[1617711168270,3.60929031,58624.0,58623.0,0.27]
[1617711168869,0.91849031,58624.0,58623.0,0.27]
[1617711169170,0.82084031,58624.0,58623.0,0.27]
[1617711169669,0.66212079,58624.0,58623.0,0.27]
[1617711170074,0.66212079,58624.0,58623.0,1.77]
[1617711170271,0.66212079,58624.0,58623.0,2.06474625]
[1617711173673,0.66212079,58624.0,58623.0,0.56474625]
[1617711176879,0.66212079,58624.0,58623.0,0.9189377]
[1617711178479,0.66212079,58624.0,58623.0,1.35288273]
[1617711178480,1.10498199,58624.0,58623.0,1.35288273]
[1617711178880,1.10498199,58624.0,58623.0,0.9189377]
[1617711179880,1.10498199,58624.0,58623.0,2.4189377]
[1617711180080,1.15548199,58624.0,58623.0,2.4189377]
[1617711180881,0.81545194,58624.0,58623.0,2.85285749]
[1617711181683,1.10498254,58624.0,58623.0,2.85285749]
[1617711182080,1.25728607,58624.0,58623.0,2.85285749]
[1617711182482,1.10498254,58624.0,58623.0,2.85285749]
[1617711182683,1.10498254,58624.0,58623.0,2.5363277]
[1617711183687,1.10498254,58624.0,58623.0,1.0363277]
[1617711183994,1.10498254,58624.0,58623.0,0.9189377]
[1617711184887,3.89928254,58624.0,58623.0,0.9189377]
[1617711185090,4.04680254,58624.0,58623.0,0.9189377]
[1617711185292,5.15405909,58624.0,58623.0,0.9189377]
[1617711185786,6.49977085,58624.0,58623.0,0.27]
[1617711186286,7.06350266,58624.0,58617.0,0.27]
[1617711186485,7.06350266,58624.0,58616.0,0.40389319]
[1617711186685,1.45742647,58623.0,58618.0,0.27]
[1617711186985,0.16264916,58622.0,58617.0,0.27]
[1617711187185,0.16264916,58622.0,58616.0,0.10725655]
[1617711187186,1.61078692,58619.0,58616.0,0.10725655]
[1617711187386,0.10725655,58617.0,58616.0,0.10725655]
[1617711187887,1.88230874,58617.0,58616.0,0.6742934]
[1617711190388,1.88230874,58617.0,58616.0,1.03038666]
[1617711192290,1.37849106,58617.0,58616.0,0.6742934]
[1617711192691,1.37849106,58617.0,58616.0,0.8143934]
[1617711193291,1.37849106,58617.0,58616.0,3.8430934]
[1617711193491,1.27123451,58617.0,58616.0,3.8430934]
[1617711193892,1.27123451,58617.0,58616.0,4.0430934]
[1617711194197,0.66510785,58617.0,58616.0,4.39816248]
[1617711194591,0.81843358,58617.0,58616.0,4.39816248]
[1617711194992,0.66510785,58617.0,58616.0,4.83202238]
[1617711195393,0.30233091,58617.0,58616.0,4.83202238]
[1617711195993,0.30233091,58617.0,58616.0,4.63202238]
[1617711196594,0.66426569,58617.0,58616.0,4.19816248]
[1617711197295,0.66426569,58617.0,58616.0,4.63204783]
[1617711197697,0.66426569,58617.0,58616.0,4.83204783]
[1617711198198,0.30233091,58617.0,58616.0,4.83204783]
[1617711198399,0.35333091,58617.0,58616.0,6.33204783]
[1617711199395,0.30233091,58617.0,58616.0,6.33204783]
[1617711199595,0.29053091,58617.0,58616.0,6.33204783]